[Event "Titled Tuesday Blitz February 21 Early 2023"]
[White "Fisher_TheGalactic"]
[Black "Fernandez Garcia, Gumersindo"]
[BlackFideId "24516740"]
[WhiteElo "2535"]
[BlackElo "2160"]
[Result "1-0"]
[Round "08"]
[TimeControl "180+2"]
[Date "2023.02.21"]
[WhiteClock "0:00:56"]
[BlackClock "0:00:18"]

1. Nf3 {[%clk 0:03:00]}  b6 {[%clk 0:02:56]} 2. e4 {[%clk 0:02:54]}  Bb7 {[%clk 0:02:54]} 3. Nc3 {[%clk 0:02:54]}  g6 {[%clk 0:02:53]} 4. d4 {[%clk 0:02:52]}  Bg7 {[%clk 0:02:54]} 5. Bd3 {[%clk 0:02:53]}  d6 {[%clk 0:02:52]} 6. O-O {[%clk 0:02:53]}  e6 {[%clk 0:02:51]} 7. Bf4 {[%clk 0:02:52]}  Nd7 {[%clk 0:02:51]} 8. Qd2 {[%clk 0:02:52]}  h6 {[%clk 0:02:49]} 9. Rfe1 {[%clk 0:02:48]}  Ngf6 {[%clk 0:02:48]} 10. Rad1 {[%clk 0:02:42]}  Qe7 {[%clk 0:02:45]} 11. a4 {[%clk 0:02:41]}  a6 {[%clk 0:02:32]} 12. e5 {[%clk 0:02:31]}  Nh5 {[%clk 0:02:31]} 13. exd6 {[%clk 0:02:30]}  cxd6 {[%clk 0:02:31]} 14. Rxe6 {[%clk 0:02:22]}  Qxe6 {[%clk 0:02:11]} 15. Re1 {[%clk 0:02:22]}  Nxf4 {[%clk 0:02:04]} 16. Qxf4 {[%clk 0:02:06]}  O-O {[%clk 0:01:43]} 17. Rxe6 {[%clk 0:02:04]}  fxe6 {[%clk 0:01:43]} 18. Qxd6 {[%clk 0:02:04]}  Bxf3 {[%clk 0:01:42]} 19. gxf3 {[%clk 0:02:03]}  Rad8 {[%clk 0:01:27]} 20. Bxg6 {[%clk 0:02:02]}  Kh8 {[%clk 0:01:15]} 21. Ne4 {[%clk 0:01:52]}  e5 {[%clk 0:01:15]} 22. d5 {[%clk 0:01:41]}  Nf6 {[%clk 0:01:05]} 23. Qxb6 {[%clk 0:01:34]}  Nxd5 {[%clk 0:01:05]} 24. Qxa6 {[%clk 0:01:34]}  Nf4 {[%clk 0:01:05]} 25. h4 {[%clk 0:01:29]}  Ra8 {[%clk 0:00:57]} 26. Qd6 {[%clk 0:01:15]}  Rfd8 {[%clk 0:00:56]} 27. Qc6 {[%clk 0:01:15]}  Rac8 {[%clk 0:00:56]} 28. Qb6 {[%clk 0:01:15]}  Rb8 {[%clk 0:00:56]} 29. Qc6 {[%clk 0:01:11]}  Rbc8 {[%clk 0:00:53]} 30. Qa6 {[%clk 0:01:06]}  Rxc2 {[%clk 0:00:46]} 31. Nd6 {[%clk 0:00:59]}  Rf8 {[%clk 0:00:36]} 32. Bxc2 {[%clk 0:00:57]}  Ne2+ {[%clk 0:00:18]} 33. Qxe2 {[%clk 0:00:56]} 1-0


[Site "https://www.chess.com"]

[Event "Titled Tuesday Blitz February 21 Early 2023"]
[White "Padmini, Rout"]
[Black "Iljin, Timofey"]
[WhiteFideId "5029295"]
[BlackFideId "14110180"]
[WhiteElo "2375"]
[BlackElo "2329"]
[Result "0-1"]
[Round "08"]
[TimeControl "180+2"]
[Date "2023.02.21"]
[WhiteClock "0:00:14"]
[BlackClock "0:00:29"]

1. e4 {[%clk 0:03:00]}  e5 {[%clk 0:02:53]} 2. Nf3 {[%clk 0:03:00]}  Nc6 {[%clk 0:02:53]} 3. Bc4 {[%clk 0:02:56]}  Nf6 {[%clk 0:02:53]} 4. d3 {[%clk 0:02:54]}  Bc5 {[%clk 0:02:52]} 5. O-O {[%clk 0:02:53]}  d6 {[%clk 0:02:53]} 6. c3 {[%clk 0:02:52]}  Bb6 {[%clk 0:02:49]} 7. Nbd2 {[%clk 0:02:48]}  h6 {[%clk 0:02:48]} 8. b4 {[%clk 0:02:44]}  a6 {[%clk 0:02:42]} 9. a4 {[%clk 0:02:41]}  Bg4 {[%clk 0:02:33]} 10. a5 {[%clk 0:02:29]}  Ba7 {[%clk 0:02:32]} 11. Qb3 {[%clk 0:02:29]}  Qe7 {[%clk 0:02:26]} 12. Bb2 {[%clk 0:02:08]}  O-O {[%clk 0:02:20]} 13. Rae1 {[%clk 0:02:04]}  Nh5 {[%clk 0:02:20]} 14. d4 {[%clk 0:01:29]}  Nf4 {[%clk 0:02:13]} 15. Re3 {[%clk 0:01:28]}  Rad8 {[%clk 0:02:04]} 16. Rfe1 {[%clk 0:00:57]}  Qf6 {[%clk 0:02:02]} 17. Bd5 {[%clk 0:00:35]}  exd4 {[%clk 0:01:24]} 18. cxd4 {[%clk 0:00:25]}  Nxd4 {[%clk 0:01:23]} 19. Nxd4 {[%clk 0:00:17]}  Bxd4 {[%clk 0:01:24]} 20. Bxd4 {[%clk 0:00:17]}  Qxd4 {[%clk 0:01:24]} 21. Nf3 {[%clk 0:00:17]}  Bxf3 {[%clk 0:01:19]} 22. Rxf3 {[%clk 0:00:17]}  Nxd5 {[%clk 0:01:19]} 23. exd5 {[%clk 0:00:18]}  Rfe8 {[%clk 0:01:18]} 24. Rfe3 {[%clk 0:00:19]}  Rxe3 {[%clk 0:01:12]} 25. fxe3 {[%clk 0:00:20]}  Qe5 {[%clk 0:01:10]} 26. Rc1 {[%clk 0:00:20]}  Rd7 {[%clk 0:01:10]} 27. Qd3 {[%clk 0:00:20]}  Re7 {[%clk 0:01:09]} 28. Kf2 {[%clk 0:00:19]}  g6 {[%clk 0:01:08]} 29. g3 {[%clk 0:00:19]}  Kg7 {[%clk 0:01:08]} 30. Rc4 {[%clk 0:00:19]}  Qf6+ {[%clk 0:01:06]} 31. Kg2 {[%clk 0:00:18]}  Qe5 {[%clk 0:01:00]} 32. Kf2 {[%clk 0:00:18]}  h5 {[%clk 0:01:00]} 33. h4 {[%clk 0:00:18]}  Qb2+ {[%clk 0:00:56]} 34. Kf3 {[%clk 0:00:18]}  Re5 {[%clk 0:00:53]} 35. Rf4 {[%clk 0:00:18]}  Qa2 {[%clk 0:00:40]} 36. Re4 {[%clk 0:00:17]}  Rxd5 {[%clk 0:00:33]} 37. Qc3+ {[%clk 0:00:18]}  Kh7 {[%clk 0:00:31]} 38. Re8 {[%clk 0:00:18]}  Rf5+ {[%clk 0:00:28]} 39. Ke4 {[%clk 0:00:14]}  Qd5# {[%clk 0:00:29]} 0-1


[Site "https://www.chess.com"]

[Event "Titled Tuesday Blitz February 21 Early 2023"]
[White "Kaganskiy, Gleb"]
[Black "Novikov, Evgenij"]
[WhiteFideId "4132025"]
[BlackFideId "4125380"]
[WhiteElo "2205"]
[BlackElo "2276"]
[Result "1/2-1/2"]
[Round "08"]
[TimeControl "180+2"]
[Date "2023.02.21"]
[WhiteClock "0:00:29"]
[BlackClock "0:00:16"]

1. e4 {[%clk 0:02:57]}  c6 {[%clk 0:03:00]} 2. c4 {[%clk 0:02:49]}  d6 {[%clk 0:02:56]} 3. d4 {[%clk 0:02:49]}  g6 {[%clk 0:02:55]} 4. Nc3 {[%clk 0:02:47]}  Bg7 {[%clk 0:02:54]} 5. Nf3 {[%clk 0:02:47]}  Bg4 {[%clk 0:02:53]} 6. Be2 {[%clk 0:02:47]}  Nd7 {[%clk 0:02:51]} 7. Be3 {[%clk 0:02:46]}  Qc7 {[%clk 0:02:36]} 8. h3 {[%clk 0:02:44]}  Bxf3 {[%clk 0:02:36]} 9. Bxf3 {[%clk 0:02:45]}  e5 {[%clk 0:02:36]} 10. O-O {[%clk 0:02:39]}  Ne7 {[%clk 0:02:28]} 11. Qd2 {[%clk 0:02:24]}  exd4 {[%clk 0:02:26]} 12. Bxd4 {[%clk 0:02:24]}  Ne5 {[%clk 0:02:26]} 13. Be2 {[%clk 0:02:22]}  O-O {[%clk 0:01:53]} 14. f4 {[%clk 0:02:21]}  Nd7 {[%clk 0:01:53]} 15. Bxg7 {[%clk 0:02:20]}  Kxg7 {[%clk 0:01:54]} 16. f5 {[%clk 0:02:13]}  f6 {[%clk 0:01:50]} 17. Bg4 {[%clk 0:02:09]}  Ne5 {[%clk 0:01:47]} 18. b3 {[%clk 0:02:04]}  Rad8 {[%clk 0:01:35]} 19. Ne2 {[%clk 0:02:03]}  Qb6+ {[%clk 0:01:06]} 20. Kh1 {[%clk 0:02:00]}  Nf7 {[%clk 0:00:46]} 21. Nf4 {[%clk 0:01:51]}  Ng5 {[%clk 0:00:46]} 22. Qd3 {[%clk 0:01:36]}  h5 {[%clk 0:00:43]} 23. Be2 {[%clk 0:01:17]}  h4 {[%clk 0:00:41]} 24. Bg4 {[%clk 0:01:14]}  d5 {[%clk 0:00:34]} 25. cxd5 {[%clk 0:01:08]}  cxd5 {[%clk 0:00:35]} 26. e5 {[%clk 0:01:04]}  fxe5 {[%clk 0:00:31]} 27. Ne6+ {[%clk 0:00:59]}  Nxe6 {[%clk 0:00:30]} 28. fxe6 {[%clk 0:01:00]}  Qd4 {[%clk 0:00:27]} 29. Qb5 {[%clk 0:00:55]}  b6 {[%clk 0:00:20]} 30. Rad1 {[%clk 0:00:54]}  Rxf1+ {[%clk 0:00:18]} 31. Rxf1 {[%clk 0:00:49]}  Rf8 {[%clk 0:00:18]} 32. Rxf8 {[%clk 0:00:35]}  Kxf8 {[%clk 0:00:18]} 33. Qd7 {[%clk 0:00:35]}  Qb4 {[%clk 0:00:18]} 34. Qd8+ {[%clk 0:00:30]}  Kg7 {[%clk 0:00:18]} 35. Qe8 {[%clk 0:00:29]}  Qe1+ {[%clk 0:00:16]} 36. Kh2 {[%clk 0:00:29]}  Qg3+ {[%clk 0:00:17]} 37. Kh1 {[%clk 0:00:29]}  Qe1+ {[%clk 0:00:15]} 38. Kh2 {[%clk 0:00:29]}  Qg3+ {[%clk 0:00:16]} 39. Kh1 {[%clk 0:00:29]}  Qe1+ {[%clk 0:00:16]} 1/2-1/2


[Site "https://www.chess.com"]

[Event "Titled Tuesday Blitz February 21 Early 2023"]
[White "Begunov, Konstantin"]
[Black "Deng, Henry"]
[WhiteFideId "4118510"]
[BlackFideId "30965454"]
[WhiteElo "2325"]
[BlackElo "2168"]
[Result "0-1"]
[Round "08"]
[TimeControl "180+2"]
[Date "2023.02.21"]
[WhiteClock "0:00:02"]
[BlackClock "0:00:56"]

1. d4 {[%clk 0:03:00]}  d5 {[%clk 0:02:59]} 2. c4 {[%clk 0:03:00]}  c6 {[%clk 0:03:00]} 3. Nc3 {[%clk 0:03:01]}  Nf6 {[%clk 0:03:00]} 4. Nf3 {[%clk 0:03:00]}  e6 {[%clk 0:02:58]} 5. cxd5 {[%clk 0:03:00]}  exd5 {[%clk 0:02:57]} 6. Bg5 {[%clk 0:03:01]}  Bf5 {[%clk 0:02:56]} 7. Qb3 {[%clk 0:03:00]}  b6 {[%clk 0:02:54]} 8. e3 {[%clk 0:02:55]}  Be7 {[%clk 0:02:54]} 9. Be2 {[%clk 0:02:53]}  h6 {[%clk 0:02:53]} 10. Bh4 {[%clk 0:02:52]}  O-O {[%clk 0:02:53]} 11. O-O {[%clk 0:02:52]}  Ne4 {[%clk 0:02:54]} 12. Bxe7 {[%clk 0:02:49]}  Qxe7 {[%clk 0:02:55]} 13. Rfd1 {[%clk 0:02:42]}  Nd7 {[%clk 0:02:54]} 14. Rac1 {[%clk 0:02:40]}  Rfe8 {[%clk 0:02:54]} 15. Nxe4 {[%clk 0:02:26]}  dxe4 {[%clk 0:02:54]} 16. Nd2 {[%clk 0:02:25]}  Rac8 {[%clk 0:02:50]} 17. Qa4 {[%clk 0:02:12]}  c5 {[%clk 0:02:44]} 18. Ba6 {[%clk 0:01:37]}  Rcd8 {[%clk 0:02:36]} 19. Nb3 {[%clk 0:01:15]}  Be6 {[%clk 0:02:30]} 20. d5 {[%clk 0:01:06]}  Bg4 {[%clk 0:02:26]} 21. Rd2 {[%clk 0:01:03]}  Ne5 {[%clk 0:02:24]} 22. Bb5 {[%clk 0:00:59]}  Rf8 {[%clk 0:02:05]} 23. Qxe4 {[%clk 0:00:49]}  f5 {[%clk 0:02:02]} 24. Qf4 {[%clk 0:00:41]}  g5 {[%clk 0:02:02]} 25. Qg3 {[%clk 0:00:41]}  f4 {[%clk 0:02:02]} 26. exf4 {[%clk 0:00:40]}  gxf4 {[%clk 0:02:01]} 27. Qc3 {[%clk 0:00:38]}  Qg5 {[%clk 0:01:56]} 28. Kh1 {[%clk 0:00:30]}  f3 {[%clk 0:01:56]} 29. g3 {[%clk 0:00:28]}  Bh3 {[%clk 0:01:43]} 30. Re1 {[%clk 0:00:25]}  Ng4 {[%clk 0:01:40]} 31. d6 {[%clk 0:00:17]}  Rf6 {[%clk 0:01:20]} 32. Re7 {[%clk 0:00:16]}  Qh5 {[%clk 0:01:18]} 33. Kg1 {[%clk 0:00:14]}  Bf1 {[%clk 0:01:05]} 34. h4 {[%clk 0:00:15]}  Bxb5 {[%clk 0:01:04]} 35. d7 {[%clk 0:00:13]}  Qg6 {[%clk 0:00:57]} 36. Rd5 {[%clk 0:00:02]}  Re6 {[%clk 0:00:56]} 0-1


[Site "https://www.chess.com"]

[Event "Titled Tuesday Blitz February 21 Early 2023"]
[White "Garv Gaur"]
[Black "Rios Escobar, Adan"]
[WhiteFideId "45030839"]
[BlackFideId "3403645"]
[WhiteElo "2006"]
[BlackElo "2234"]
[Result "1-0"]
[Round "08"]
[TimeControl "180+2"]
[Date "2023.02.21"]
[WhiteClock "0:00:02"]
[BlackClock "0:00:01"]

1. d4 {[%clk 0:03:00]}  Nf6 {[%clk 0:02:53]} 2. Nf3 {[%clk 0:02:47]}  g6 {[%clk 0:02:46]} 3. c4 {[%clk 0:02:44]}  Bg7 {[%clk 0:02:47]} 4. g3 {[%clk 0:02:43]}  c5 {[%clk 0:02:44]} 5. d5 {[%clk 0:02:38]}  b5 {[%clk 0:02:44]} 6. cxb5 {[%clk 0:02:37]}  a6 {[%clk 0:02:44]} 7. bxa6 {[%clk 0:02:37]}  d6 {[%clk 0:02:43]} 8. Nc3 {[%clk 0:02:36]}  Qa5 {[%clk 0:02:43]} 9. Bd2 {[%clk 0:02:33]}  O-O {[%clk 0:02:38]} 10. Bg2 {[%clk 0:02:32]}  Nfd7 {[%clk 0:02:38]} 11. O-O {[%clk 0:02:30]}  Nb6 {[%clk 0:02:38]} 12. Rb1 {[%clk 0:02:28]}  Nc4 {[%clk 0:02:37]} 13. Qc2 {[%clk 0:02:27]}  Nxd2 {[%clk 0:02:36]} 14. Nxd2 {[%clk 0:02:28]}  Bxa6 {[%clk 0:02:36]} 15. Rfe1 {[%clk 0:02:28]}  Nd7 {[%clk 0:02:35]} 16. h3 {[%clk 0:01:51]}  Rfb8 {[%clk 0:02:32]} 17. Rec1 {[%clk 0:01:45]}  Ra7 {[%clk 0:02:22]} 18. Na4 {[%clk 0:01:27]}  Bxe2 {[%clk 0:02:13]} 19. b3 {[%clk 0:01:27]}  Ne5 {[%clk 0:02:03]} 20. Bf1 {[%clk 0:01:13]}  Bf3 {[%clk 0:01:21]} 21. Nxf3 {[%clk 0:00:35]}  Nxf3+ {[%clk 0:01:19]} 22. Kh1 {[%clk 0:00:35]}  Nd2 {[%clk 0:01:05]} 23. Bc4 {[%clk 0:00:34]}  Nxb1 {[%clk 0:01:02]} 24. Rxb1 {[%clk 0:00:34]}  Qb4 {[%clk 0:00:58]} 25. Rd1 {[%clk 0:00:29]}  h5 {[%clk 0:00:37]} 26. Qe2 {[%clk 0:00:29]}  Qa3 {[%clk 0:00:31]} 27. Bb5 {[%clk 0:00:23]}  Ra5 {[%clk 0:00:24]} 28. Bc6 {[%clk 0:00:21]}  Bf6 {[%clk 0:00:20]} 29. g4 {[%clk 0:00:16]}  hxg4 {[%clk 0:00:19]} 30. hxg4 {[%clk 0:00:17]}  Rb4 {[%clk 0:00:19]} 31. Kg2 {[%clk 0:00:17]}  Kg7 {[%clk 0:00:18]} 32. Rh1 {[%clk 0:00:16]}  Rf4 {[%clk 0:00:16]} 33. f3 {[%clk 0:00:14]}  Qb4 {[%clk 0:00:13]} 34. Qe3 {[%clk 0:00:13]}  Qd4 {[%clk 0:00:08]} 35. Qe1 {[%clk 0:00:14]}  Qd3 {[%clk 0:00:04]} 36. Rh3 {[%clk 0:00:09]}  c4 {[%clk 0:00:04]} 37. Qxa5 {[%clk 0:00:03]}  Qe2+ {[%clk 0:00:02]} 38. Kh1 {[%clk 0:00:02]}  Qf1+ {[%clk 0:00:01]} 39. Kh2 {[%clk 0:00:02]}  Be5 {[%clk 0:00:01]} 40. Qd2 {[%clk 0:00:02]}  Rxf3+ {[%clk 0:00:01]} 41. Qf4 {[%clk 0:00:02]} 1-0


[Site "https://www.chess.com"]

[Event "Titled Tuesday Blitz February 21 Early 2023"]
[White "Bethke, Richard"]
[Black "Lorenzo De La Riva, Lazaro"]
[WhiteFideId "12959243"]
[BlackFideId "2268809"]
[WhiteElo "2382"]
[BlackElo "2404"]
[Result "1-0"]
[Round "08"]
[TimeControl "180+2"]
[Date "2023.02.21"]
[WhiteClock "0:00:48"]
[BlackClock "0:00:10"]

1. e4 {[%clk 0:03:00]}  d6 {[%clk 0:02:58]} 2. Nf3 {[%clk 0:03:01]}  Nf6 {[%clk 0:02:58]} 3. Nc3 {[%clk 0:03:01]}  c6 {[%clk 0:02:50]} 4. d4 {[%clk 0:03:01]}  g6 {[%clk 0:02:47]} 5. e5 {[%clk 0:02:57]}  dxe5 {[%clk 0:02:45]} 6. dxe5 {[%clk 0:02:57]}  Qxd1+ {[%clk 0:02:44]} 7. Nxd1 {[%clk 0:02:58]}  Nd5 {[%clk 0:02:41]} 8. Ne3 {[%clk 0:02:58]}  Nb6 {[%clk 0:02:39]} 9. h4 {[%clk 0:02:51]}  h6 {[%clk 0:02:32]} 10. Bd3 {[%clk 0:02:47]}  Bg7 {[%clk 0:02:23]} 11. Bd2 {[%clk 0:02:42]}  Be6 {[%clk 0:02:16]} 12. Nd4 {[%clk 0:02:29]}  Bxe5 {[%clk 0:01:52]} 13. Nxe6 {[%clk 0:02:29]}  fxe6 {[%clk 0:01:52]} 14. Bxg6+ {[%clk 0:02:29]}  Kf8 {[%clk 0:01:38]} 15. O-O-O {[%clk 0:02:29]}  N8d7 {[%clk 0:01:37]} 16. Ng4 {[%clk 0:02:24]}  Bg7 {[%clk 0:01:36]} 17. Rhe1 {[%clk 0:02:24]}  h5 {[%clk 0:01:28]} 18. Nh2 {[%clk 0:02:19]}  Nc5 {[%clk 0:01:21]} 19. Bb4 {[%clk 0:02:17]}  Nbd7 {[%clk 0:01:14]} 20. Nf3 {[%clk 0:02:07]}  a5 {[%clk 0:01:13]} 21. Bd2 {[%clk 0:01:59]}  Bf6 {[%clk 0:00:34]} 22. Ng5 {[%clk 0:01:56]}  Kg7 {[%clk 0:00:34]} 23. Bd3 {[%clk 0:01:52]}  Nxd3+ {[%clk 0:00:33]} 24. cxd3 {[%clk 0:01:53]}  Nc5 {[%clk 0:00:32]} 25. Bc3 {[%clk 0:01:46]}  Bxc3 {[%clk 0:00:28]} 26. bxc3 {[%clk 0:01:47]}  Rh6 {[%clk 0:00:24]} 27. Re5 {[%clk 0:01:45]}  Nd7 {[%clk 0:00:20]} 28. Rxe6 {[%clk 0:01:45]}  Rxe6 {[%clk 0:00:20]} 29. Nxe6+ {[%clk 0:01:44]}  Kf6 {[%clk 0:00:21]} 30. Re1 {[%clk 0:01:44]}  Rg8 {[%clk 0:00:19]} 31. Ng5 {[%clk 0:01:43]}  e5 {[%clk 0:00:19]} 32. d4 {[%clk 0:01:41]}  Kf5 {[%clk 0:00:14]} 33. Re3 {[%clk 0:01:28]}  exd4 {[%clk 0:00:14]} 34. cxd4 {[%clk 0:01:29]}  Nb6 {[%clk 0:00:14]} 35. g3 {[%clk 0:01:24]}  Nd5 {[%clk 0:00:13]} 36. Rf3+ {[%clk 0:01:24]}  Kg4 {[%clk 0:00:13]} 37. Rf7 {[%clk 0:01:23]}  Re8 {[%clk 0:00:13]} 38. Kd2 {[%clk 0:01:22]}  b5 {[%clk 0:00:10]} 39. Rg7 {[%clk 0:01:02]}  Kf5 {[%clk 0:00:10]} 40. Ra7 {[%clk 0:00:59]}  a4 {[%clk 0:00:09]} 41. f3 {[%clk 0:00:59]}  Rd8 {[%clk 0:00:08]} 42. Rh7 {[%clk 0:00:52]}  Kg6 {[%clk 0:00:08]} 43. g4 {[%clk 0:00:52]}  hxg4 {[%clk 0:00:07]} 44. fxg4 {[%clk 0:00:53]}  Nf6 {[%clk 0:00:08]} 45. Rc7 {[%clk 0:00:53]}  Nxg4 {[%clk 0:00:08]} 46. Rxc6+ {[%clk 0:00:53]}  Kf5 {[%clk 0:00:09]} 47. Kd3 {[%clk 0:00:51]}  Kf4 {[%clk 0:00:10]} 48. Ne6+ {[%clk 0:00:48]} 1-0


[Site "https://www.chess.com"]

[Event "Titled Tuesday Blitz February 21 Early 2023"]
[White "rikchessmx"]
[Black "Dauner, Benedikt"]
[BlackFideId "16225899"]
[WhiteElo "2351"]
[BlackElo "2400"]
[Result "0-1"]
[Round "08"]
[TimeControl "180+2"]
[Date "2023.02.21"]
[WhiteClock "0:00:39"]
[BlackClock "0:01:09"]

1. e4 {[%clk 0:03:00]}  Nc6 {[%clk 0:02:32]} 2. Nc3 {[%clk 0:02:35]}  Nf6 {[%clk 0:02:28]} 3. Bc4 {[%clk 0:02:34]}  e6 {[%clk 0:02:27]} 4. Bb3 {[%clk 0:02:30]}  d5 {[%clk 0:02:26]} 5. exd5 {[%clk 0:02:30]}  exd5 {[%clk 0:02:27]} 6. d4 {[%clk 0:02:30]}  a5 {[%clk 0:02:20]} 7. Nf3 {[%clk 0:02:24]}  Bg4 {[%clk 0:02:18]} 8. Be3 {[%clk 0:02:22]}  Bb4 {[%clk 0:02:17]} 9. a3 {[%clk 0:02:21]}  Bxc3+ {[%clk 0:02:15]} 10. bxc3 {[%clk 0:02:22]}  a4 {[%clk 0:02:15]} 11. Ba2 {[%clk 0:02:22]}  b5 {[%clk 0:02:14]} 12. Qd3 {[%clk 0:02:21]}  Bxf3 {[%clk 0:02:05]} 13. Qxb5 {[%clk 0:02:14]}  O-O {[%clk 0:01:57]} 14. gxf3 {[%clk 0:02:14]}  Ne7 {[%clk 0:01:52]} 15. Rb1 {[%clk 0:01:58]}  c6 {[%clk 0:01:44]} 16. Qd3 {[%clk 0:01:56]}  Ng6 {[%clk 0:01:40]} 17. O-O {[%clk 0:01:53]}  Qd7 {[%clk 0:01:36]} 18. Kh1 {[%clk 0:01:45]}  Qh3 {[%clk 0:01:36]} 19. Bg5 {[%clk 0:01:35]}  Nh5 {[%clk 0:01:29]} 20. Rg1 {[%clk 0:01:29]}  Rab8 {[%clk 0:01:26]} 21. Rb4 {[%clk 0:01:20]}  Rbe8 {[%clk 0:01:15]} 22. c4 {[%clk 0:01:17]}  Ngf4 {[%clk 0:01:10]} 23. Bxf4 {[%clk 0:01:12]}  Nxf4 {[%clk 0:01:11]} 24. Qd1 {[%clk 0:00:55]}  Re1 {[%clk 0:01:10]} 25. Qxe1 {[%clk 0:00:38]}  Qxf3+ {[%clk 0:01:08]} 26. Rg2 {[%clk 0:00:39]}  Qxg2# {[%clk 0:01:09]} 0-1


[Site "https://www.chess.com"]

[Event "Titled Tuesday Blitz February 21 Early 2023"]
[White "Bogaudinov, Rushan"]
[Black "Zhukova, Natalia"]
[WhiteFideId "4129288"]
[BlackFideId "14101513"]
[WhiteElo "1939"]
[BlackElo "2324"]
[Result "0-1"]
[Round "08"]
[TimeControl "180+2"]
[Date "2023.02.21"]
[WhiteClock "0:00:05"]
[BlackClock "0:00:06"]

1. a3 {[%clk 0:02:53]}  e5 {[%clk 0:02:58]} 2. e3 {[%clk 0:02:52]}  d5 {[%clk 0:02:57]} 3. Nf3 {[%clk 0:02:49]}  e4 {[%clk 0:02:55]} 4. Ng1 {[%clk 0:02:49]}  c5 {[%clk 0:02:52]} 5. d3 {[%clk 0:02:49]}  Nf6 {[%clk 0:02:41]} 6. dxe4 {[%clk 0:02:42]}  Nxe4 {[%clk 0:02:40]} 7. c4 {[%clk 0:02:37]}  Be6 {[%clk 0:02:26]} 8. Nf3 {[%clk 0:02:24]}  Nc6 {[%clk 0:02:24]} 9. cxd5 {[%clk 0:02:22]}  Qxd5 {[%clk 0:02:18]} 10. Qxd5 {[%clk 0:02:20]}  Bxd5 {[%clk 0:02:18]} 11. Nbd2 {[%clk 0:02:08]}  O-O-O {[%clk 0:02:09]} 12. Nxe4 {[%clk 0:02:03]}  Bxe4 {[%clk 0:02:10]} 13. Bd2 {[%clk 0:02:03]}  f6 {[%clk 0:01:39]} 14. Rc1 {[%clk 0:01:54]}  Kb8 {[%clk 0:01:37]} 15. h4 {[%clk 0:01:39]}  Be7 {[%clk 0:01:37]} 16. h5 {[%clk 0:01:39]}  Bxf3 {[%clk 0:01:24]} 17. gxf3 {[%clk 0:01:39]}  Ne5 {[%clk 0:01:25]} 18. Be2 {[%clk 0:01:35]}  Nd3+ {[%clk 0:01:22]} 19. Bxd3 {[%clk 0:01:35]}  Rxd3 {[%clk 0:01:23]} 20. h6 {[%clk 0:01:29]}  g6 {[%clk 0:01:22]} 21. Bc3 {[%clk 0:01:23]}  Rhd8 {[%clk 0:01:23]} 22. Ke2 {[%clk 0:01:23]}  R3d5 {[%clk 0:01:18]} 23. f4 {[%clk 0:01:14]}  Kc7 {[%clk 0:00:59]} 24. e4 {[%clk 0:00:48]}  Rd3 {[%clk 0:00:48]} 25. Rcd1 {[%clk 0:00:42]}  Rxd1 {[%clk 0:00:36]} 26. Rxd1 {[%clk 0:00:43]}  Rxd1 {[%clk 0:00:36]} 27. Kxd1 {[%clk 0:00:44]}  Kd7 {[%clk 0:00:29]} 28. Ke2 {[%clk 0:00:39]}  Ke6 {[%clk 0:00:29]} 29. Kd3 {[%clk 0:00:38]}  Bf8 {[%clk 0:00:30]} 30. Bd2 {[%clk 0:00:35]}  f5 {[%clk 0:00:28]} 31. f3 {[%clk 0:00:33]}  Bxh6 {[%clk 0:00:28]} 32. Kc4 {[%clk 0:00:33]}  Bf8 {[%clk 0:00:23]} 33. Be3 {[%clk 0:00:29]}  h5 {[%clk 0:00:22]} 34. Bf2 {[%clk 0:00:29]}  Be7 {[%clk 0:00:19]} 35. b4 {[%clk 0:00:21]}  cxb4 {[%clk 0:00:18]} 36. axb4 {[%clk 0:00:22]}  a6 {[%clk 0:00:17]} 37. b5 {[%clk 0:00:22]}  a5 {[%clk 0:00:15]} 38. Kb3 {[%clk 0:00:20]}  h4 {[%clk 0:00:11]} 39. Ka4 {[%clk 0:00:20]}  h3 {[%clk 0:00:11]} 40. Bg1 {[%clk 0:00:18]}  Bd8 {[%clk 0:00:10]} 41. Kb3 {[%clk 0:00:13]}  b6 {[%clk 0:00:08]} 42. Kc4 {[%clk 0:00:13]}  Bh4 {[%clk 0:00:06]} 43. Bh2 {[%clk 0:00:12]}  Bf2 {[%clk 0:00:06]} 44. Kd3 {[%clk 0:00:12]}  Bc5 {[%clk 0:00:05]} 45. Kc4 {[%clk 0:00:12]}  a4 {[%clk 0:00:05]} 46. Kc3 {[%clk 0:00:12]}  a3 {[%clk 0:00:05]} 47. Kb3 {[%clk 0:00:12]}  Be7 {[%clk 0:00:04]} 48. Ka2 {[%clk 0:00:12]}  Kd6 {[%clk 0:00:04]} 49. Kxa3 {[%clk 0:00:09]}  Kc5 {[%clk 0:00:04]} 50. Ka4 {[%clk 0:00:09]}  Kd4 {[%clk 0:00:05]} 51. Kb3 {[%clk 0:00:09]}  Ke3 {[%clk 0:00:05]} 52. Kc4 {[%clk 0:00:07]}  Kxf3 {[%clk 0:00:05]} 53. e5 {[%clk 0:00:07]}  Kg2 {[%clk 0:00:05]} 54. Kd5 {[%clk 0:00:05]}  Kxh2 {[%clk 0:00:05]} 55. Ke6 {[%clk 0:00:06]}  Bh4 {[%clk 0:00:06]} 56. Kf7 {[%clk 0:00:05]}  Kg3 {[%clk 0:00:06]} 57. e6 {[%clk 0:00:04]}  h2 {[%clk 0:00:06]} 58. e7 {[%clk 0:00:04]}  Bxe7 {[%clk 0:00:06]} 59. Kxe7 {[%clk 0:00:05]}  h1=Q {[%clk 0:00:06]} 0-1


[Site "https://www.chess.com"]